[Event "Late-Titled-Tuesday-Blitz-February-06-2024"]
[Site "Chess.com"]
[Date "2024.02.06"]
[Round "3"]
[White "tptagain"]
[Black "koziororo"]
[Result "1-0"]
[WhiteElo "2947"]
[BlackElo "2616"]
[TimeControl "180+1"]
[EndTime "14:30:21 PST"]
[Termination "tptagain won by resignation"]

1. Nf3 {[%clk 0:03:00.9]} 1... g6 {[%clk 0:02:59.8]} 2. d4 {[%clk 0:03:00.8]}
2... Bg7 {[%clk 0:03:00.5]} 3. Bg5 {[%clk 0:03:01]} 3... c5 {[%clk 0:02:58.8]}
4. e3 {[%clk 0:03:00.5]} 4... cxd4 {[%clk 0:02:58.6]} 5. exd4 {[%clk 0:03:00.8]}
5... Nf6 {[%clk 0:02:58.8]} 6. Nbd2 {[%clk 0:02:59.5]} 6... O-O {[%clk
0:02:59.2]} 7. h3 {[%clk 0:02:58.5]} 7... d6 {[%clk 0:02:58]} 8. Bc4 {[%clk
0:02:58.5]} 8... Nbd7 {[%clk 0:02:55.8]} 9. O-O {[%clk 0:02:58.6]} 9... b6
{[%clk 0:02:55.4]} 10. Re1 {[%clk 0:02:58.1]} 10... Re8 {[%clk 0:02:55.5]} 11.
c3 {[%clk 0:02:54.2]} 11... Bb7 {[%clk 0:02:55.3]} 12. Qb3 {[%clk 0:02:52.7]}
12... Rf8 {[%clk 0:02:51.4]} 13. a4 {[%clk 0:02:51.7]} 13... h6 {[%clk
0:02:50.8]} 14. Bh4 {[%clk 0:02:47.3]} 14... d5 {[%clk 0:02:48.7]} 15. Bb5
{[%clk 0:02:42.3]} 15... a6 {[%clk 0:02:27.1]} 16. Bxd7 {[%clk 0:02:38.5]} 16...
Qxd7 {[%clk 0:02:27.2]} 17. Qxb6 {[%clk 0:02:38.3]} 17... Ne4 {[%clk 0:02:14.4]}
18. Nxe4 {[%clk 0:02:21.3]} 18... dxe4 {[%clk 0:02:15.3]} 19. Ne5 {[%clk
0:02:21]} 19... Bxe5 {[%clk 0:02:11.8]} 20. dxe5 {[%clk 0:02:21.9]} 20... Rab8
{[%clk 0:01:38.8]} 21. e6 {[%clk 0:02:21]} 21... fxe6 {[%clk 0:01:33.3]} 22. Bg3
{[%clk 0:02:04.4]} 22... Rbc8 {[%clk 0:01:33.3]} 23. Rad1 {[%clk 0:01:59]} 23...
Qc6 {[%clk 0:01:32.8]} 24. Qe3 {[%clk 0:01:53.4]} 24... Kh7 {[%clk 0:01:30.6]}
25. Rd4 {[%clk 0:01:52.2]} 25... Rf5 {[%clk 0:01:26.1]} 26. Red1 {[%clk
0:01:49.9]} 26... Rd5 {[%clk 0:01:19.4]} 27. Kh2 {[%clk 0:01:27.6]} 27... Rcd8
{[%clk 0:01:14.6]} 28. Be5 {[%clk 0:01:18.9]} 28... Rf8 {[%clk 0:01:09.9]} 29.
Bf4 {[%clk 0:01:05.6]} 29... g5 {[%clk 0:00:44.8]} 30. Qxe4+ {[%clk 0:00:48.3]}
30... Rdf5 {[%clk 0:00:44.8]} 31. Qxc6 {[%clk 0:00:48.1]} 31... Bxc6 {[%clk
0:00:45.7]} 32. Bg3 {[%clk 0:00:48.5]} 32... Rd5 {[%clk 0:00:44.4]} 33. b3
{[%clk 0:00:28.4]} 33... Rfd8 {[%clk 0:00:43.7]} 34. Be5 {[%clk 0:00:28.7]}
34... Rf8 {[%clk 0:00:38.9]} 35. Rxd5 {[%clk 0:00:27]} 35... exd5 {[%clk
0:00:33.5]} 36. Bd4 {[%clk 0:00:26.9]} 36... Kg6 {[%clk 0:00:31.7]} 37. Re1
{[%clk 0:00:26.5]} 37... Kf7 {[%clk 0:00:30.6]} 38. a5 {[%clk 0:00:23.1]} 38...
Rb8 {[%clk 0:00:28.9]} 39. b4 {[%clk 0:00:23.5]} 39... e6 {[%clk 0:00:26.2]} 40.
g4 {[%clk 0:00:22.3]} 40... Ke7 {[%clk 0:00:24.5]} 41. h4 {[%clk 0:00:20.3]}
41... Rf8 {[%clk 0:00:21.8]} 42. hxg5 {[%clk 0:00:19.1]} 42... hxg5 {[%clk
0:00:22.7]} 43. Kg3 {[%clk 0:00:19.6]} 43... Rf7 {[%clk 0:00:19.7]} 44. Rh1
{[%clk 0:00:18.8]} 44... e5 {[%clk 0:00:17.8]} 45. Bc5+ {[%clk 0:00:14.6]} 45...
Ke6 {[%clk 0:00:18.1]} 46. Rh6+ {[%clk 0:00:14.7]} 46... Rf6 {[%clk 0:00:18.5]}
47. Rh5 {[%clk 0:00:06.8]} 47... d4 {[%clk 0:00:17.8]} 48. cxd4 {[%clk
0:00:07.5]} 48... Rf3+ {[%clk 0:00:17.5]} 49. Kh2 {[%clk 0:00:08.1]} 49... Rf4
{[%clk 0:00:15.7]} 50. Rxg5 {[%clk 0:00:05.9]} 50... exd4 {[%clk 0:00:15.7]} 51.
Rg6+ {[%clk 0:00:06]} 51... Kd7 {[%clk 0:00:16.1]} 52. Rd6+ {[%clk 0:00:06.1]}
52... Kc7 {[%clk 0:00:16.5]} 53. Rxd4 {[%clk 0:00:03.5]} 53... Rxf2+ {[%clk
0:00:16.4]} 54. Kg3 {[%clk 0:00:04]} 54... Rf3+ {[%clk 0:00:16.9]} 55. Kh4
{[%clk 0:00:04.3]} 55... Rf1 {[%clk 0:00:15.4]} 56. g5 {[%clk 0:00:03.9]} 56...
Rh1+ {[%clk 0:00:13.3]} 57. Kg4 {[%clk 0:00:04.2]} 57... Rg1+ {[%clk 0:00:14.2]}
58. Kf5 {[%clk 0:00:04.4]} 58... Rg2 {[%clk 0:00:12.6]} 59. Rf4 {[%clk
0:00:03.4]} 59... Ba4 {[%clk 0:00:13.5]} 60. Kf6 {[%clk 0:00:03.7]} 60... Bc2
{[%clk 0:00:12.6]} 61. Be7 {[%clk 0:00:02.7]} 61... Kd7 {[%clk 0:00:11.9]} 62.
Bc5 {[%clk 0:00:03.4]} 62... Kc6 {[%clk 0:00:11.9]} 63. Rf2 {[%clk 0:00:03.9]}
63... Rg4 {[%clk 0:00:10.8]} 64. Rxc2 {[%clk 0:00:03.9]} 1-0

[Event "Late-Titled-Tuesday-Blitz-February-06-2024"]
[Site "Chess.com"]
[Date "2024.02.06"]
[Round "3"]
[White "alexrustemov"]
[Black "Polish_fighter3000"]
[Result "0-1"]
[WhiteElo "2788"]
[BlackElo "3044"]
[TimeControl "180+1"]
[EndTime "14:30:23 PST"]
[Termination "Polish_fighter3000 won on time"]

1. d4 {[%clk 0:03:00.9]} 1... Nf6 {[%clk 0:02:55.9]} 2. c4 {[%clk 0:03:01.3]}
2... d6 {[%clk 0:02:55.1]} 3. Nf3 {[%clk 0:03:01.7]} 3... Nbd7 {[%clk
0:02:55.4]} 4. Nc3 {[%clk 0:03:01.9]} 4... g6 {[%clk 0:02:54.7]} 5. g3 {[%clk
0:03:02.2]} 5... Bg7 {[%clk 0:02:54.9]} 6. Bg2 {[%clk 0:03:02.6]} 6... O-O
{[%clk 0:02:55.1]} 7. d5 {[%clk 0:03:02.1]} 7... Nb6 {[%clk 0:02:49.6]} 8. Nd2
{[%clk 0:03:00.6]} 8... a5 {[%clk 0:02:40.9]} 9. O-O {[%clk 0:03:00]} 9... a4
{[%clk 0:02:41.2]} 10. Rb1 {[%clk 0:02:57.4]} 10... Ng4 {[%clk 0:02:36.4]} 11.
Qc2 {[%clk 0:02:54]} 11... Bf5 {[%clk 0:02:28.4]} 12. e4 {[%clk 0:02:53]} 12...
Bd7 {[%clk 0:02:29.1]} 13. b3 {[%clk 0:02:52.2]} 13... axb3 {[%clk 0:02:16.9]}
14. axb3 {[%clk 0:02:53.1]} 14... f5 {[%clk 0:02:09.2]} 15. exf5 {[%clk
0:02:43.7]} 15... Bxf5 {[%clk 0:02:10.1]} 16. Nde4 {[%clk 0:02:33.6]} 16... c6
{[%clk 0:02:09]} 17. h3 {[%clk 0:02:28.5]} 17... Nf6 {[%clk 0:02:06.8]} 18. g4
{[%clk 0:02:15.4]} 18... Bxe4 {[%clk 0:01:54.4]} 19. Nxe4 {[%clk 0:02:14.6]}
19... cxd5 {[%clk 0:01:54.7]} 20. Nxf6+ {[%clk 0:02:11.6]} 20... Bxf6 {[%clk
0:01:45.8]} 21. cxd5 {[%clk 0:02:11.4]} 21... Rc8 {[%clk 0:01:45.5]} 22. Qe2
{[%clk 0:02:11.1]} 22... Nd7 {[%clk 0:01:40.1]} 23. Be3 {[%clk 0:02:08.4]} 23...
Rc3 {[%clk 0:01:34.3]} 24. Rfc1 {[%clk 0:02:06.2]} 24... Qa5 {[%clk 0:01:10.3]}
25. Bd2 {[%clk 0:01:59.5]} 25... Rxc1+ {[%clk 0:01:09.9]} 26. Rxc1 {[%clk
0:02:00]} 26... Qa2 {[%clk 0:01:07.8]} 27. Qe6+ {[%clk 0:01:46.3]} 27... Kg7
{[%clk 0:01:06]} 28. Be3 {[%clk 0:01:46.7]} 28... Nc5 {[%clk 0:00:59]} 29. Bxc5
{[%clk 0:01:43.9]} 29... dxc5 {[%clk 0:00:58.6]} 30. Qe3 {[%clk 0:01:08.9]}
30... Bd4 {[%clk 0:00:56.6]} 31. Qxe7+ {[%clk 0:01:05.7]} 31... Rf7 {[%clk
0:00:57.1]} 32. Qe4 {[%clk 0:00:56.1]} 32... Qxf2+ {[%clk 0:00:55.1]} 33. Kh1
{[%clk 0:00:56.6]} 33... Qg3 {[%clk 0:00:54.4]} 34. Re1 {[%clk 0:00:51.4]} 34...
Kh6 {[%clk 0:00:49.4]} 35. d6 {[%clk 0:00:39.2]} 35... Qxd6 {[%clk 0:00:45.6]}
36. Rf1 {[%clk 0:00:29.5]} 36... Re7 {[%clk 0:00:42.5]} 37. Qf4+ {[%clk
0:00:24.5]} 37... Qxf4 {[%clk 0:00:42.2]} 38. Rxf4 {[%clk 0:00:14.6]} 38... Re1+
{[%clk 0:00:41.5]} 39. Rf1 {[%clk 0:00:14.2]} 39... Re3 {[%clk 0:00:41.8]} 40.
Rf3 {[%clk 0:00:14.6]} 40... Re2 {[%clk 0:00:37.9]} 41. h4 {[%clk 0:00:14]}
41... Kg7 {[%clk 0:00:30.8]} 42. Kh2 {[%clk 0:00:14.3]} 42... b5 {[%clk
0:00:30.2]} 43. Kh3 {[%clk 0:00:12.9]} 43... Rb2 {[%clk 0:00:17.1]} 44. g5
{[%clk 0:00:12]} 44... c4 {[%clk 0:00:12.9]} 45. bxc4 {[%clk 0:00:12.9]} 45...
bxc4 {[%clk 0:00:13.7]} 46. Rf4 {[%clk 0:00:13]} 46... Rb3+ {[%clk 0:00:14.1]}
47. Kg4 {[%clk 0:00:11.5]} 47... Be5 {[%clk 0:00:11]} 48. Rf3 {[%clk 0:00:11.7]}
48... c3 {[%clk 0:00:11.3]} 49. Rf2 {[%clk 0:00:08]} 49... Rb4+ {[%clk
0:00:08.8]} 50. Kh3 {[%clk 0:00:07.3]} 50... Rd4 {[%clk 0:00:08.8]} 51. Rc2
{[%clk 0:00:04.5]} 51... Rd3+ {[%clk 0:00:08.3]} 52. Bf3 {[%clk 0:00:01.6]}
52... Rxf3+ {[%clk 0:00:08.1]} 53. Kg2 {[%clk 0:00:01.8]} 53... Rg3+ {[%clk
0:00:08.4]} 54. Kf2 {[%clk 0:00:02]} 54... Rg4 {[%clk 0:00:09]} 55. Re2 {[%clk
0:00:01.3]} 55... Bd4+ {[%clk 0:00:08.9]} 56. Kf3 {[%clk 0:00:01.4]} 56... Rxh4
{[%clk 0:00:09.5]} 57. Re7+ {[%clk 0:00:01.6]} 57... Kf8 {[%clk 0:00:09.6]} 58.
Rc7 {[%clk 0:00:02.5]} 58... Ke8 {[%clk 0:00:08.9]} 59. Kg3 {[%clk 0:00:02.4]}
59... Be5+ {[%clk 0:00:07.9]} 0-1

[Event "Late-Titled-Tuesday-Blitz-February-06-2024"]
[Site "Chess.com"]
[Date "2024.02.06"]
[Round "3"]
[White "sari07"]
[Black "bazar-wokzal"]
[Result "0-1"]
[WhiteElo "2431"]
[BlackElo "2628"]
[TimeControl "180+1"]
[EndTime "14:30:23 PST"]
[Termination "bazar-wokzal won by resignation"]

1. d4 {[%clk 0:03:00.9]} 1... Nf6 {[%clk 0:02:59.5]} 2. Nc3 {[%clk 0:03:00.1]}
2... d5 {[%clk 0:02:58.2]} 3. Bf4 {[%clk 0:02:59.8]} 3... e6 {[%clk 0:02:56.7]}
4. Nb5 {[%clk 0:02:58.8]} 4... Na6 {[%clk 0:02:57.1]} 5. e3 {[%clk 0:02:59]}
5... Bb4+ {[%clk 0:02:48.7]} 6. c3 {[%clk 0:02:56.7]} 6... Be7 {[%clk
0:02:48.4]} 7. a4 {[%clk 0:02:39.1]} 7... O-O {[%clk 0:02:45.9]} 8. Bd3 {[%clk
0:02:34.9]} 8... Bd7 {[%clk 0:02:23.4]} 9. g4 {[%clk 0:02:31.7]} 9... c6 {[%clk
0:02:05.8]} 10. Na3 {[%clk 0:02:20.6]} 10... Nb8 {[%clk 0:01:46]} 11. g5 {[%clk
0:02:18.6]} 11... Ne8 {[%clk 0:01:44.9]} 12. Nf3 {[%clk 0:01:50.5]} 12... c5
{[%clk 0:01:43.6]} 13. h4 {[%clk 0:01:44.4]} 13... Nc6 {[%clk 0:01:41.9]} 14. h5
{[%clk 0:01:39.7]} 14... b6 {[%clk 0:01:36.8]} 15. g6 {[%clk 0:01:33.4]} 15...
h6 {[%clk 0:01:29.7]} 16. gxf7+ {[%clk 0:01:29.3]} 16... Rxf7 {[%clk 0:01:29.8]}
17. Rg1 {[%clk 0:01:24.6]} 17... Kh8 {[%clk 0:01:20.7]} 18. Rg6 {[%clk
0:00:56.5]} 18... Bd6 {[%clk 0:01:07.9]} 19. Bxd6 {[%clk 0:00:30.8]} 19... Nxd6
{[%clk 0:01:07.8]} 20. Nb5 {[%clk 0:00:31.7]} 20... Nf5 {[%clk 0:00:49.9]} 21.
Qe2 {[%clk 0:00:26.1]} 21... a6 {[%clk 0:00:49.7]} 22. Na3 {[%clk 0:00:21.4]}
22... c4 {[%clk 0:00:42.2]} 23. Bc2 {[%clk 0:00:19]} 23... Nh4 {[%clk
0:00:36.8]} 24. Rg3 {[%clk 0:00:13.3]} 24... Nxf3+ {[%clk 0:00:29.2]} 25. Rxf3
{[%clk 0:00:14.2]} 25... Rxf3 {[%clk 0:00:28.6]} 26. Qxf3 {[%clk 0:00:14.3]}
26... Qf6 {[%clk 0:00:28.4]} 27. Qg3 {[%clk 0:00:11.2]} 27... Rf8 {[%clk
0:00:26.4]} 28. Ke2 {[%clk 0:00:11.5]} 28... Be8 {[%clk 0:00:23]} 29. Bg6 {[%clk
0:00:08.4]} 29... Bxg6 {[%clk 0:00:20.9]} 30. hxg6 {[%clk 0:00:09.3]} 30... Ne7
{[%clk 0:00:20.9]} 31. f4 {[%clk 0:00:04.6]} 31... Nxg6 {[%clk 0:00:15.7]} 32.
Rg1 {[%clk 0:00:03.6]} 32... Ne7 {[%clk 0:00:15.4]} 33. Nc2 {[%clk 0:00:03.8]}
33... Rf7 {[%clk 0:00:14.7]} 34. Nb4 {[%clk 0:00:03.6]} 34... a5 {[%clk
0:00:13.4]} 35. Nc2 {[%clk 0:00:03.9]} 35... Qf5 {[%clk 0:00:13.9]} 36. Ne1
{[%clk 0:00:04.1]} 36... Qb1 {[%clk 0:00:12.2]} 37. Nf3 {[%clk 0:00:03.8]} 37...
Qxb2+ {[%clk 0:00:12.3]} 38. Kf1 {[%clk 0:00:04.2]} 38... Qb1+ {[%clk
0:00:09.5]} 39. Kg2 {[%clk 0:00:04]} 39... Qg6 {[%clk 0:00:08.8]} 40. Kh2 {[%clk
0:00:03.4]} 40... Qxg3+ {[%clk 0:00:08.5]} 41. Kxg3 {[%clk 0:00:03.7]} 41...
Nf5+ {[%clk 0:00:09.4]} 42. Kf2 {[%clk 0:00:03.4]} 42... b5 {[%clk 0:00:09]} 43.
Ne5 {[%clk 0:00:04.3]} 43... Rb7 {[%clk 0:00:08.3]} 44. axb5 {[%clk 0:00:04.4]}
44... Rxb5 {[%clk 0:00:08.1]} 45. Ra1 {[%clk 0:00:05.2]} 45... Rb2+ {[%clk
0:00:07.3]} 46. Kf3 {[%clk 0:00:05.4]} 46... Rb3 {[%clk 0:00:07.5]} 47. Rxa5
{[%clk 0:00:04.8]} 47... Rxc3 {[%clk 0:00:07.9]} 48. Ng6+ {[%clk 0:00:03.8]}
48... Kh7 {[%clk 0:00:08.1]} 49. Nf8+ {[%clk 0:00:03.5]} 49... Kg8 {[%clk
0:00:07.6]} 50. Nxe6 {[%clk 0:00:04.4]} 50... Rxe3+ {[%clk 0:00:07.7]} 51. Kg4
{[%clk 0:00:05.2]} 51... Rxe6 {[%clk 0:00:07.7]} 52. Kxf5 {[%clk 0:00:05.4]}
52... Kf7 {[%clk 0:00:07.5]} 53. Ra7+ {[%clk 0:00:04.9]} 53... Re7 {[%clk
0:00:07.5]} 54. Ra5 {[%clk 0:00:05.8]} 54... g6+ {[%clk 0:00:07.5]} 55. Kg4
{[%clk 0:00:05.2]} 55... Rd7 {[%clk 0:00:07.8]} 56. f5 {[%clk 0:00:05.5]} 56...
gxf5+ {[%clk 0:00:06.3]} 57. Kxf5 {[%clk 0:00:06.4]} 57... Rc7 {[%clk
0:00:05.3]} 58. Rxd5 {[%clk 0:00:06.2]} 58... c3 {[%clk 0:00:05.8]} 59. Ra5
{[%clk 0:00:06.5]} 59... c2 {[%clk 0:00:06.2]} 60. Ra1 {[%clk 0:00:06.9]} 60...
c1=Q {[%clk 0:00:06.5]} 61. Rxc1 {[%clk 0:00:07.8]} 61... Rxc1 {[%clk
0:00:06.7]} 0-1

[Event "Late-Titled-Tuesday-Blitz-February-06-2024"]
[Site "Chess.com"]
[Date "2024.02.06"]
[Round "3"]
[White "GMAkobianSTL"]
[Black "vanyakuba"]
[Result "0-1"]
[WhiteElo "2685"]
[BlackElo "2359"]
[TimeControl "180+1"]
[EndTime "14:30:25 PST"]
[Termination "vanyakuba won on time"]

1. d4 {[%clk 0:03:00.9]} 1... d5 {[%clk 0:02:59.3]} 2. c4 {[%clk 0:03:00.6]}
2... e6 {[%clk 0:02:59.5]} 3. Nc3 {[%clk 0:03:00.2]} 3... c5 {[%clk 0:02:59.7]}
4. cxd5 {[%clk 0:03:00]} 4... cxd4 {[%clk 0:03:00]} 5. Qxd4 {[%clk 0:02:58.9]}
5... Nc6 {[%clk 0:02:59.9]} 6. Qd1 {[%clk 0:02:58.4]} 6... exd5 {[%clk 0:03:00]}
7. Qxd5 {[%clk 0:02:58.2]} 7... Be6 {[%clk 0:03:00.3]} 8. Qxd8+ {[%clk
0:02:56.1]} 8... Rxd8 {[%clk 0:03:01.2]} 9. e3 {[%clk 0:02:54.3]} 9... a6 {[%clk
0:03:01.2]} 10. a3 {[%clk 0:02:53.2]} 10... Na5 {[%clk 0:02:50.4]} 11. b4 {[%clk
0:02:50.2]} 11... Nb3 {[%clk 0:02:40.8]} 12. Rb1 {[%clk 0:02:50]} 12... g6
{[%clk 0:02:39.8]} 13. Bb2 {[%clk 0:02:46.7]} 13... Bg7 {[%clk 0:02:25.1]} 14.
Nf3 {[%clk 0:02:44.3]} 14... Ne7 {[%clk 0:01:48.5]} 15. Be2 {[%clk 0:02:34.6]}
15... O-O {[%clk 0:01:17.1]} 16. O-O {[%clk 0:02:24]} 16... Nd2 {[%clk
0:01:16.9]} 17. Nxd2 {[%clk 0:01:33.6]} 17... Rxd2 {[%clk 0:01:17.8]} 18. Bf3
{[%clk 0:01:30.9]} 18... Bf5 {[%clk 0:00:41.7]} 19. e4 {[%clk 0:01:23.8]} 19...
Be6 {[%clk 0:00:41.9]} 20. Ba1 {[%clk 0:01:19]} 20... Rc8 {[%clk 0:00:27.7]} 21.
Nd5 {[%clk 0:01:17.5]} 21... Nxd5 {[%clk 0:00:20.7]} 22. exd5 {[%clk 0:01:17.3]}
22... Bxd5 {[%clk 0:00:20.9]} 23. Bxd5 {[%clk 0:00:52.8]} 23... Rxd5 {[%clk
0:00:21.8]} 24. Rfd1 {[%clk 0:00:46.7]} 24... Rxd1+ {[%clk 0:00:19.6]} 25. Rxd1
{[%clk 0:00:46.5]} 25... Bxa1 {[%clk 0:00:19.7]} 26. Rxa1 {[%clk 0:00:46.5]}
26... Rc2 {[%clk 0:00:20.2]} 27. g3 {[%clk 0:00:45]} 27... h5 {[%clk 0:00:19.7]}
28. h4 {[%clk 0:00:43.1]} 28... Kg7 {[%clk 0:00:20]} 29. Kg2 {[%clk 0:00:41.6]}
29... Kf6 {[%clk 0:00:17.9]} 30. Rd1 {[%clk 0:00:40.6]} 30... Ra2 {[%clk
0:00:15.9]} 31. Rd3 {[%clk 0:00:39.2]} 31... Ke6 {[%clk 0:00:11.2]} 32. Kf3
{[%clk 0:00:38.9]} 32... Kf6 {[%clk 0:00:07.1]} 33. Ke3 {[%clk 0:00:38.8]} 33...
Ke6 {[%clk 0:00:07.3]} 34. f3 {[%clk 0:00:38.3]} 34... Kf6 {[%clk 0:00:07.3]}
35. Kd4 {[%clk 0:00:38.4]} 35... Rc2 {[%clk 0:00:05.8]} 36. Kd5 {[%clk
0:00:37.3]} 36... g5 {[%clk 0:00:04.5]} 37. a4 {[%clk 0:00:23.3]} 37... gxh4
{[%clk 0:00:04.4]} 38. gxh4 {[%clk 0:00:23.1]} 38... Kf5 {[%clk 0:00:04.6]} 39.
Rd4 {[%clk 0:00:21.4]} 39... Rf2 {[%clk 0:00:02.9]} 40. Kc5 {[%clk 0:00:19.5]}
40... Rxf3 {[%clk 0:00:03.1]} 41. Kb6 {[%clk 0:00:19.8]} 41... Rf4 {[%clk
0:00:02.5]} 42. Rxf4+ {[%clk 0:00:19.5]} 42... Kxf4 {[%clk 0:00:03.4]} 43. Kxb7
{[%clk 0:00:19.9]} 43... Kg4 {[%clk 0:00:02.5]} 44. Kxa6 {[%clk 0:00:14.7]}
44... f5 {[%clk 0:00:02.7]} 45. b5 {[%clk 0:00:15]} 45... f4 {[%clk 0:00:03.6]}
46. b6 {[%clk 0:00:15.4]} 46... f3 {[%clk 0:00:04.5]} 47. b7 {[%clk 0:00:15.8]}
47... f2 {[%clk 0:00:05.4]} 48. b8=Q {[%clk 0:00:16.2]} 48... f1=Q+ {[%clk
0:00:06.1]} 49. Qb5 {[%clk 0:00:16.7]} 49... Qa1 {[%clk 0:00:05.5]} 50. Qg5+
{[%clk 0:00:14.8]} 50... Kh3 {[%clk 0:00:05.8]} 51. a5 {[%clk 0:00:14.2]} 51...
Qd1 {[%clk 0:00:05.5]} 52. Qe7 {[%clk 0:00:09.5]} 52... Qd3+ {[%clk 0:00:04.7]}
53. Kb6 {[%clk 0:00:09.5]} 53... Qd4+ {[%clk 0:00:04.3]} 54. Qc5 {[%clk
0:00:08.9]} 54... Qa4 {[%clk 0:00:02.7]} 55. a6 {[%clk 0:00:08.6]} 55... Kxh4
{[%clk 0:00:02.9]} 56. a7 {[%clk 0:00:08.4]} 56... Kg3 {[%clk 0:00:02.5]} 57.
Qc7+ {[%clk 0:00:06.3]} 57... Kg2 {[%clk 0:00:02.3]} 58. Qc6+ {[%clk 0:00:06.1]}
58... Qxc6+ {[%clk 0:00:01.9]} 59. Kxc6 {[%clk 0:00:07]} 59... h4 {[%clk
0:00:02.4]} 60. a8=Q {[%clk 0:00:07.3]} 60... h3 {[%clk 0:00:03.3]} 61. Kc5+
{[%clk 0:00:02.8]} 61... Kg1 {[%clk 0:00:03.7]} 62. Qa1+ {[%clk 0:00:01.5]}
62... Kg2 {[%clk 0:00:03.9]} 0-1

[Event "Late-Titled-Tuesday-Blitz-February-06-2024"]
[Site "Chess.com"]
[Date "2024.02.06"]
[Round "3"]
[White "UnTucopalaTimba"]
[Black "SHIVACalypso"]
[Result "0-1"]
[WhiteElo "1958"]
[BlackElo "2534"]
[TimeControl "180+1"]
[EndTime "14:30:31 PST"]
[Termination "SHIVACalypso won on time"]

1. e4 {[%clk 0:03:00.6]} 1... Nc6 {[%clk 0:02:51]} 2. d4 {[%clk 0:02:57.9]} 2...
e5 {[%clk 0:02:50.1]} 3. d5 {[%clk 0:02:57.5]} 3... Nce7 {[%clk 0:02:50.2]} 4.
Nf3 {[%clk 0:02:56.8]} 4... Ng6 {[%clk 0:02:48]} 5. Bc4 {[%clk 0:02:50.8]} 5...
Bc5 {[%clk 0:02:45.8]} 6. O-O {[%clk 0:02:48.9]} 6... Nf6 {[%clk 0:02:45.1]} 7.
Nc3 {[%clk 0:02:46]} 7... a5 {[%clk 0:02:44]} 8. a3 {[%clk 0:02:45.3]} 8... d6
{[%clk 0:02:43.7]} 9. h3 {[%clk 0:02:44]} 9... O-O {[%clk 0:02:43]} 10. Bg5
{[%clk 0:02:42]} 10... h6 {[%clk 0:02:42.5]} 11. Bd2 {[%clk 0:02:39.2]} 11...
Nh7 {[%clk 0:02:29.8]} 12. Be3 {[%clk 0:02:20.5]} 12... Bxe3 {[%clk 0:02:20.4]}
13. fxe3 {[%clk 0:02:20.5]} 13... Ng5 {[%clk 0:02:21.3]} 14. Qe1 {[%clk
0:02:10.1]} 14... f5 {[%clk 0:02:09.8]} 15. exf5 {[%clk 0:02:04.8]} 15... Bxf5
{[%clk 0:02:10.7]} 16. e4 {[%clk 0:02:03.3]} 16... Bxh3 {[%clk 0:01:51.5]} 17.
Qg3 {[%clk 0:01:47.1]} 17... Nxf3+ {[%clk 0:01:30.1]} 18. Rxf3 {[%clk
0:01:43.6]} 18... Rxf3 {[%clk 0:01:25]} 19. Qxf3 {[%clk 0:01:27.2]} 19... Bd7
{[%clk 0:01:23.6]} 20. Rf1 {[%clk 0:01:24.6]} 20... Qe7 {[%clk 0:01:20.6]} 21.
Qg3 {[%clk 0:01:14.5]} 21... Nf4 {[%clk 0:01:19.1]} 22. Ne2 {[%clk 0:01:10.6]}
22... Nxe2+ {[%clk 0:01:14.1]} 23. Bxe2 {[%clk 0:01:10.3]} 23... Rf8 {[%clk
0:01:15]} 24. Rxf8+ {[%clk 0:01:06.1]} 24... Qxf8 {[%clk 0:01:15.9]} 25. Qc3
{[%clk 0:01:03.4]} 25... Qf4 {[%clk 0:00:40.4]} 26. Bf3 {[%clk 0:01:02.6]} 26...
c6 {[%clk 0:00:38.1]} 27. Qxa5 {[%clk 0:00:54.1]} 27... Bg4 {[%clk 0:00:33.9]}
28. Qd8+ {[%clk 0:00:49.4]} 28... Kh7 {[%clk 0:00:33.5]} 29. Qxd6 {[%clk
0:00:45.9]} 29... Bxf3 {[%clk 0:00:33]} 30. gxf3 {[%clk 0:00:44.8]} 30... Qg3+
{[%clk 0:00:33.4]} 31. Kf1 {[%clk 0:00:44.2]} 31... Qxf3+ {[%clk 0:00:33.9]} 32.
Kg1 {[%clk 0:00:43.7]} 32... Qd1+ {[%clk 0:00:29.9]} 33. Kf2 {[%clk 0:00:42.6]}
33... Qxc2+ {[%clk 0:00:30.5]} 34. Ke3 {[%clk 0:00:42.6]} 34... Qb3+ {[%clk
0:00:21.9]} 35. Kf2 {[%clk 0:00:40.8]} 35... Qxb2+ {[%clk 0:00:21.8]} 36. Kf3
{[%clk 0:00:40.8]} 36... cxd5 {[%clk 0:00:16.7]} 37. exd5 {[%clk 0:00:36.8]}
37... Qd4 {[%clk 0:00:15.5]} 38. Qe6 {[%clk 0:00:18.3]} 38... Qf4+ {[%clk
0:00:13.1]} 39. Ke2 {[%clk 0:00:18.1]} 39... Qe4+ {[%clk 0:00:13.5]} 40. Kd2
{[%clk 0:00:17.1]} 40... Qd4+ {[%clk 0:00:13.2]} 41. Ke2 {[%clk 0:00:17.1]}
41... Qb2+ {[%clk 0:00:10.8]} 42. Kf3 {[%clk 0:00:16.1]} 42... Qxa3+ {[%clk
0:00:10.8]} 43. Kg4 {[%clk 0:00:14.3]} 43... Qb4+ {[%clk 0:00:09.7]} 44. Kg3
{[%clk 0:00:12.1]} 44... Qc3+ {[%clk 0:00:09.6]} 45. Kf2 {[%clk 0:00:10.9]}
45... Qd4+ {[%clk 0:00:09.3]} 46. Kf3 {[%clk 0:00:10]} 46... Qf4+ {[%clk
0:00:09.2]} 47. Ke2 {[%clk 0:00:10.1]} 47... e4 {[%clk 0:00:07.9]} 48. d6 {[%clk
0:00:08.7]} 48... Qf3+ {[%clk 0:00:07.7]} 49. Kd2 {[%clk 0:00:08.8]} 49... Qf2+
{[%clk 0:00:05.3]} 50. Kc3 {[%clk 0:00:08.3]} 50... Qc5+ {[%clk 0:00:05.3]} 51.
Kd2 {[%clk 0:00:07.7]} 51... Qd4+ {[%clk 0:00:05.4]} 52. Ke2 {[%clk 0:00:07.7]}
52... Qd3+ {[%clk 0:00:05.8]} 53. Kf2 {[%clk 0:00:07.2]} 53... Qf3+ {[%clk
0:00:05.9]} 54. Ke1 {[%clk 0:00:07.2]} 54... e3 {[%clk 0:00:06.5]} 55. Qa2
{[%clk 0:00:01.1]} 55... Qh1+ {[%clk 0:00:05.1]} 0-1